bitfinex/quotes_BTCUSD_20250412
["timestamp","ask_amount","ask_price","bid_price","bid_amount"]
[1744452308698,0.11719902,83445.0,83444.0,0.001]
[1744452308900,0.0939,83432.0,83430.0,0.09044279]
[1744452309109,0.011987,83422.0,83419.0,1.25737041]
[1744452309305,0.011987,83422.0,83420.0,0.12084154]
[1744452311258,0.012987,83422.0,83420.0,0.12084154]
[1744452311485,0.013987,83422.0,83420.0,0.12084154]
[1744452311699,0.013987,83422.0,83420.0,0.12184154]
[1744452312689,0.333647,83421.0,83420.0,0.001]
[1744452313125,0.493647,83421.0,83420.0,0.001]
[1744452314045,0.239756,83418.0,83417.0,0.0004222]
[1744452314266,0.40205502,83418.0,83417.0,0.0004222]
[1744452314481,0.399756,83418.0,83417.0,0.0004222]
[1744452314702,0.445356,83418.0,83417.0,0.0004222]
[1744452315161,0.50250323,83418.0,83417.0,0.0004222]
[1744452315375,0.51250323,83418.0,83417.0,0.0014222]
[1744452315580,0.51250323,83418.0,83417.0,0.0004222]
[1744452315800,0.52462878,83418.0,83417.0,0.0004222]
[1744452315962,0.53062878,83418.0,83417.0,0.0004222]
[1744452316501,0.54062878,83418.0,83417.0,0.0014222]
[1744452317184,0.52850323,83418.0,83417.0,0.0014222]
[1744452317369,0.52250323,83418.0,83417.0,0.0014222]
[1744452317838,0.51050323,83418.0,83417.0,0.0014222]
[1744452318030,0.52350323,83418.0,83417.0,0.0024222]
[1744452319037,0.251798,83400.0,83395.0,0.1771785]
[1744452319230,0.251798,83400.0,83396.0,0.12084154]
[1744452319644,0.01199,83400.0,83396.0,0.36065854]
[1744452319851,0.239803,83402.0,83396.0,0.36065854]
[1744452320062,0.01199,83401.0,83397.0,0.01199]
[1744452320492,0.003,83400.0,83397.0,0.01199]
[1744452320700,0.003,83400.0,83397.0,0.251803]
[1744452320910,0.01199,83402.0,83398.0,0.01199]
[1744452321132,0.011986,83424.0,83420.0,0.011987]
[1744452321379,0.021986,83424.0,83421.0,0.13282854]
[1744452322448,0.018,83424.0,83421.0,0.13282854]
[1744452322691,0.008,83424.0,83422.0,0.239742]
[1744452322926,0.008,83424.0,83423.0,0.12084154]
[1744452324279,0.022,83424.0,83423.0,0.12084154]
[1744452324477,0.014,83424.0,83423.0,0.12084154]
[1744452324733,0.019,83424.0,83423.0,0.12184154]
[1744452325095,0.025,83424.0,83423.0,0.12184154]
[1744452328851,0.025,83424.0,83423.0,0.12086378]
[1744452336652,0.025,83424.0,83423.0,0.12086378]
[1744452344074,0.03104502,83424.0,83423.0,0.12086378]
[1744452350742,0.025,83424.0,83423.0,0.12326094]
[1744452350955,0.025,83424.0,83423.0,0.17316094]
[1744452351591,0.025,83424.0,83423.0,0.17076378]
[1744452351797,0.025,83424.0,83423.0,0.51076378]
[1744452355837,0.025,83424.0,83423.0,0.91896256]
[1744452357029,0.025,83424.0,83423.0,1.05760256]
[1744452357663,0.025,83424.0,83423.0,1.00770256]
[1744452358536,0.025,83424.0,83423.0,0.66770256]
[1744452377926,0.025,83424.0,83423.0,0.52906256]
[1744452378134,0.025,83424.0,83423.0,0.66762256]
[1744452380843,0.03108158,83424.0,83423.0,0.66762256]
[1744452382343,0.03108158,83424.0,83423.0,0.90736456]
[1744452385116,0.03108158,83424.0,83423.0,0.49916578]
[1744452386091,0.03108158,83424.0,83423.0,0.25942378]
[1744452394429,0.025,83424.0,83423.0,0.25942378]
[1744452395539,0.019,83424.0,83423.0,0.25942378]
[1744452395759,0.023,83424.0,83423.0,0.25942378]
[1744452397318,0.03,83424.0,83423.0,0.26042378]
[1744452412220,0.0785,83424.0,83423.0,0.26042378]
[1744452412425,0.03,83424.0,83423.0,0.26042378]
[1744452427564,0.0476,83448.0,83447.0,0.239673]
[1744452427767,0.0453,83452.0,83451.0,0.239661]
[1744452428000,0.1253,83452.0,83451.0,0.36050254]
[1744452428219,0.12544021,83452.0,83451.0,0.36050254]
[1744452428658,0.00620853,83452.0,83451.0,0.70050254]
[1744452428874,0.00014021,83452.0,83451.0,0.70050254]
[1744452429580,0.00314021,83452.0,83451.0,0.70150254]
[1744452429800,0.00314021,83452.0,83451.0,0.71324439]
[1744452429999,0.00014021,83452.0,83451.0,0.71224439]
[1744452430385,0.00914021,83452.0,83451.0,0.71324439]
[1744452430852,0.00014021,83452.0,83451.0,0.71224439]
[1744452431008,0.00214021,83452.0,83451.0,0.71224439]
[1744452431222,0.00614021,83452.0,83451.0,0.71224439]
[1744452440526,0.00614021,83452.0,83451.0,0.85064439]
[1744452441127,0.00614021,83452.0,83451.0,0.51064439]
[1744452441555,0.05444021,83452.0,83451.0,0.51064439]
[1744452455518,0.05444021,83452.0,83451.0,0.25924154]
[1744452455743,0.10204021,83452.0,83451.0,0.25924154]
[1744452455964,0.10830255,83452.0,83451.0,0.25924154]
[1744452456935,0.10830255,83452.0,83451.0,0.12084154]
[1744452465884,0.10204021,83452.0,83451.0,0.12084154]
[1744452466035,0.10829563,83452.0,83451.0,0.12084154]
[1744452470276,0.05999563,83452.0,83451.0,0.12084154]
[1744452470489,0.01239563,83452.0,83451.0,0.12084154]
[1744452470700,0.00614021,83452.0,83451.0,0.12084154]
[1744452472108,0.01239563,83452.0,83451.0,0.12084154]
[1744452472308,0.00614021,83452.0,83451.0,0.12084154]
[1744452472537,0.01239563,83452.0,83451.0,0.12084154]
[1744452472739,0.00614021,83452.0,83451.0,0.12084154]
[1744452472942,0.01239563,83452.0,83451.0,0.12084154]
[1744452473158,0.00614021,83452.0,83451.0,0.12084154]
[1744452473385,0.01239563,83452.0,83451.0,0.12084154]
[1744452473570,0.00614021,83452.0,83451.0,0.12084154]
[1744452474992,0.01240453,83452.0,83451.0,0.12084154]
[1744452481841,0.00614021,83452.0,83451.0,0.12084154]
[1744452483395,0.01240453,83452.0,83451.0,0.12084154]
[1744452490479,0.00614021,83452.0,83451.0,0.12084154]
[1744452500344,0.00614021,83452.0,83451.0,0.25916154]
[1744452512513,0.00614021,83452.0,83451.0,0.12084154]
[1744452512721,0.00614021,83452.0,83451.0,0.25916154]
[1744452514457,0.00614021,83452.0,83451.0,0.12084154]
[1744452514873,0.00614021,83452.0,83451.0,0.25916154]
[1744452515288,0.01191768,83452.0,83451.0,0.25916154]
[1744452520465,0.00614021,83452.0,83451.0,0.25916154]
[1744452530075,0.05871675,83452.0,83451.0,0.25916154]
[1744452531216,0.05871675,83452.0,83451.0,0.12084154]
[1744452546071,0.01191675,83452.0,83451.0,0.12084154]
[1744452558418,0.00614021,83452.0,83451.0,0.12084154]
[1744452559260,0.00214021,83452.0,83451.0,0.12084154]
[1744452559678,0.00514021,83452.0,83451.0,0.12084154]
[1744452560103,0.00314021,83452.0,83451.0,0.12084154]
[1744452566139,2.1e-07,83452.0,83451.0,0.93497879]
[1744452566363,0.0008438,83456.0,83455.0,0.40354085]
[1744452566364,1e-08,83456.0,83455.0,0.40354085]
[1744452566585,0.00080401,83458.0,83457.0,0.40354085]
[1744452566814,0.00085077,83458.0,83457.0,0.5558818]
[1744452567299,0.0472,83487.0,83457.0,0.5558818]
[1744452567300,9.7e-07,83466.0,83465.0,0.59416185]
[1744452567539,9.7e-07,83466.0,83465.0,1.31036339]
[1744452567771,0.01965577,83477.0,83476.0,0.59412985]
[1744452567990,0.01965577,83477.0,83476.0,0.71497139]
[1744452568227,0.02012354,83477.0,83476.0,0.71497139]
[1744452568921,0.02212354,83477.0,83476.0,0.71497139]
[1744452572795,0.02212354,83477.0,83476.0,1.12317139]
[1744452574323,0.02212354,83477.0,83476.0,1.21747139]
[1744452575256,0.02012354,83477.0,83476.0,1.21747139]
[1744452575705,0.02012354,83477.0,83476.0,1.22247139]
[1744452575919,5.4e-07,83477.0,83476.0,1.22247139]
[1744452577023,5.4e-07,83477.0,83476.0,1.22147139]
[1744452577233,5.4e-07,83477.0,83476.0,1.22247139]
[1744452578158,5.4e-07,83477.0,83476.0,1.22147139]
[1744452578410,5.4e-07,83477.0,83476.0,1.22247139]
[1744452578626,5.4e-07,83477.0,83476.0,1.21847139]
[1744452578904,5.4e-07,83477.0,83476.0,1.22247139]
[1744452579813,5.4e-07,83477.0,83476.0,1.12817139]
[1744452580265,5.4e-07,83477.0,83476.0,1.26629139]
[1744452580727,5.4e-07,83477.0,83476.0,1.26529139]
[1744452580958,5.4e-07,83477.0,83476.0,1.26629139]
[1744452581449,5.4e-07,83477.0,83476.0,1.26529139]
[1744452581674,5.4e-07,83477.0,83476.0,1.26629139]
[1744452582143,5.4e-07,83477.0,83476.0,1.26229139]
[1744452582368,5.4e-07,83477.0,83476.0,1.26629139]
[1744452583048,5.4e-07,83477.0,83476.0,1.27029139]
[1744452584866,5.4e-07,83477.0,83476.0,1.13217139]
[1744452585058,5.4e-07,83477.0,83476.0,1.27029139]
[1744452593690,5.4e-07,83477.0,83476.0,1.13217139]
[1744452593949,5.4e-07,83477.0,83476.0,1.27021139]
[1744452597518,5.4e-07,83477.0,83476.0,2.50269139]
[1744452601744,5.4e-07,83477.0,83476.0,2.53420009]
[1744452609898,5.4e-07,83477.0,83476.0,2.58260009]
[1744452610631,5.4e-07,83477.0,83476.0,2.53420009]
[1744452643882,5.4e-07,83477.0,83476.0,2.53412009]
[1744452649692,5.4e-07,83477.0,83476.0,2.38161924]
[1744452649895,5.4e-07,83477.0,83476.0,2.51957924]
[1744452650131,0.04610054,83477.0,83476.0,2.48807054]
[1744452650341,0.04610054,83477.0,83476.0,1.90848154]
[1744452650342,0.09190054,83477.0,83476.0,1.90848154]
[1744452650797,0.09799309,83477.0,83476.0,1.90348154]
[1744452651019,0.48148654,83477.0,83476.0,0.10742873]
[1744452651227,0.331521,83465.0,83464.0,0.12397597]
[1744452651419,0.331521,83465.0,83464.0,0.24481751]
[1744452651620,0.329521,83465.0,83464.0,0.24481751]
[1744452652116,0.33557007,83465.0,83464.0,0.24481751]
[1744452653979,0.33857007,83465.0,83464.0,0.24481751]
[1744452654219,0.33857007,83465.0,83464.0,0.12084154]
[1744452665314,0.10094907,83465.0,83464.0,0.12084154]
[1744452665515,0.10324809,83465.0,83464.0,0.12084154]
[1744452667012,0.10324809,83465.0,83461.0,0.13796]
[1744452667013,0.23963,83462.0,83461.0,0.13796]
[1744452667223,0.251652,83449.0,83448.0,0.13796]
[1744452667426,0.060983,83449.0,83448.0,0.25880154]
[1744452667638,0.05129902,83449.0,83448.0,0.25880154]
[1744452668244,0.049,83449.0,83448.0,0.25880154]
[1744452668755,0.049,83449.0,83448.0,0.25926877]
[1744452669385,0.05488186,83449.0,83448.0,0.25926877]
[1744452670057,0.05488186,83449.0,83448.0,0.49893877]
[1744452670696,0.049,83449.0,83448.0,0.49893877]
[1744452670900,0.05488186,83449.0,83448.0,0.49893877]
[1744452671102,0.05488186,83449.0,83448.0,0.25926877]
[1744452672135,0.05488186,83449.0,83448.0,0.12130877]
[1744452676241,0.049,83449.0,83448.0,0.12130877]
[1744452676630,0.05129902,83449.0,83448.0,0.12130877]
[1744452676787,0.05718088,83449.0,83448.0,0.12130877]
[1744452677698,0.05488186,83449.0,83448.0,0.12130877]
[1744452678470,0.049,83449.0,83448.0,0.12130877]
[1744452679474,0.00229902,83450.0,83448.0,0.36097577]
[1744452679639,0.00229902,83450.0,83449.0,0.12084154]
[1744452680094,0.00814474,83450.0,83449.0,0.12084154]
[1744452682293,0.00914474,83450.0,83449.0,0.12084154]
[1744452700946,0.00684572,83450.0,83449.0,0.12084154]
[1744452707666,0.001,83450.0,83449.0,0.12084154]
[1744452722146,0.00677852,83450.0,83449.0,0.12084154]
[1744452722350,0.001,83450.0,83449.0,0.12084154]
[1744452722567,0.00677852,83450.0,83449.0,0.12084154]
[1744452722847,0.001,83450.0,83449.0,0.12084154]
[1744452723062,0.00677852,83450.0,83449.0,0.12084154]
[1744452727133,0.001,83450.0,83449.0,0.12084154]
[1744452728560,0.00676364,83450.0,83449.0,0.12084154]
[1744452728717,0.001,83450.0,83449.0,0.12084154]
[1744452731823,0.00676364,83450.0,83449.0,0.12084154]
[1744452732035,0.001,83450.0,83449.0,0.12084154]
[1744452732248,0.00676364,83450.0,83449.0,0.12084154]
[1744452734024,0.00676364,83450.0,83448.0,0.00146723]
[1744452734025,0.24642764,83450.0,83448.0,0.00146723]
[1744452734268,0.09369902,83449.0,83448.0,0.00146723]
[1744452734486,0.27369902,83449.0,83448.0,0.00146723]
[1744452734694,0.2714,83449.0,83448.0,0.00146723]
[1744452734903,0.27715145,83449.0,83448.0,0.00146723]
[1744452735538,0.2888634,83449.0,83448.0,0.00146723]
[1744452735926,0.2888634,83449.0,83448.0,0.00046723]
[1744452736868,0.2988634,83449.0,83448.0,0.00146723]
[1744452748006,0.2928634,83449.0,83448.0,0.00046723]
[1744452748166,0.2998634,83449.0,83448.0,0.00146723]
[1744452748565,0.2958634,83449.0,83448.0,0.00146723]
[1744452748783,0.2958634,83449.0,83448.0,0.00246723]
[1744452748784,0.3038634,83449.0,83448.0,0.00246723]
[1744452749190,0.3038634,83449.0,83448.0,0.00146723]
[1744452749467,0.3128634,83449.0,83448.0,0.00246723]
[1744452749687,0.3058634,83449.0,83448.0,0.00146723]
[1744452749907,0.3128634,83449.0,83448.0,0.00146723]
[1744452764026,0.20975145,83449.0,83448.0,0.00146723]
[1744452764231,0.21205047,83449.0,83448.0,0.00146723]
[1744452841281,0.20569914,83449.0,83448.0,0.00146723]
[1744452870269,1.23713369,83449.0,83448.0,2.3e-07]
[1744452870496,1.28183467,83449.0,83448.0,2.3e-07]
[1744452871081,1.29637552,83449.0,83448.0,2.3e-07]
[1744452871289,1.22675725,83449.0,83448.0,2.3e-07]
[1744452871494,1.19308251,83449.0,83448.0,2.3e-07]
[1744452872191,0.0485,83444.0,83430.0,0.0004219]
[1744452872381,0.34229902,83443.0,83442.0,0.00046866]
[1744452872675,0.51513175,83443.0,83442.0,0.00046866]
[1744452872907,0.52410497,83443.0,83442.0,0.00046866]
[1744452873483,0.53410497,83443.0,83442.0,0.00146866]
[1744452873688,0.54210497,83443.0,83442.0,0.00146866]
[1744452887547,0.54210497,83443.0,83442.0,6.6e-07]
[1744452910585,0.58730497,83443.0,83442.0,6.6e-07]
[1744452910800,0.82887499,83443.0,83442.0,6.6e-07]
[1744452911023,0.284919,83431.0,83430.0,5.6e-07]
[1744452911264,0.641179,83431.0,83430.0,5.6e-07]
[1744452911485,0.64627479,83431.0,83430.0,5.6e-07]
[1744452911703,0.64627479,83431.0,83418.0,0.00748978]
[1744452911704,0.239753,83419.0,83418.0,3.4e-07]
[1744452911916,0.239762,83416.0,83415.0,0.0004219]
[1744452912126,0.42206102,83416.0,83415.0,0.0004219]
[1744452912405,0.42715681,83416.0,83415.0,0.0004219]
[1744452912653,0.42485779,83416.0,83415.0,0.0004219]
[1744452913310,0.42490451,83416.0,83415.0,0.0004219]
[1744452913749,0.43394897,83416.0,83415.0,0.0004219]
[1744452914164,0.43694897,83416.0,83415.0,0.0004219]
[1744452914965,0.44871506,83416.0,83415.0,0.0004219]
[1744452929385,0.43694897,83416.0,83415.0,0.0004219]
[1744452929597,0.42790451,83416.0,83415.0,0.0004219]
[1744452929807,0.18814251,83416.0,83415.0,0.0004219]
[1744452930269,0.00814251,83416.0,83415.0,0.0004219]
[1744452930691,0.16814251,83416.0,83415.0,0.0004219]
[1744452932846,0.00814251,83416.0,83415.0,0.0004219]
[1744452933052,0.18814251,83416.0,83415.0,0.0004219]
[1744452936453,0.1875673,83416.0,83415.0,0.0004219]
[1744452937128,0.0075673,83416.0,83415.0,0.0004219]
[1744452937348,0.1575673,83416.0,83415.0,0.0004219]
[1744452937721,0.15986632,83416.0,83415.0,0.0004219]
[1744452938309,0.19986632,83416.0,83415.0,0.0004219]
[1744452939143,0.19986632,83416.0,83415.0,0.0041675]
[1744452939679,0.19986632,83416.0,83415.0,0.01165871]
[1744452940184,0.0075673,83416.0,83415.0,0.01165871]
[1744452940414,0.1775673,83416.0,83415.0,0.01165871]
[1744452940579,0.1875673,83416.0,83415.0,0.01165871]
[1744452942457,0.1775673,83416.0,83415.0,0.01165871]
[1744452943774,0.0075673,83416.0,83415.0,0.01165871]
[1744452943998,0.1775673,83416.0,83415.0,0.01165871]
[1744452944822,0.17986632,83416.0,83415.0,0.01165871]
[1744452945642,0.1775673,83416.0,83415.0,0.01165871]
[1744452947010,0.0075673,83416.0,83415.0,0.01165871]
[1744452949429,0.0075673,83416.0,83415.0,0.18170025]
[1744452949595,0.0075673,83416.0,83415.0,0.42146525]
[1744452950513,0.0045673,83416.0,83415.0,0.42146525]
[1744452950713,0.0065673,83416.0,83415.0,0.42146525]
[1744452950915,0.0065673,83416.0,83415.0,0.42346525]
[1744452957573,0.0065673,83416.0,83415.0,0.18370025]
[1744452962612,0.00204672,83416.0,83415.0,0.18370025]
[1744452962819,0.00702583,83416.0,83415.0,0.18370025]
[1744452967136,0.00204672,83416.0,83415.0,0.18370025]
[1744452968126,0.00702583,83416.0,83415.0,0.18370025]
[1744452968324,0.00204672,83416.0,83415.0,0.18370025]
[1744452968474,0.00702583,83416.0,83415.0,0.18370025]
[1744452968683,0.00204672,83416.0,83415.0,0.18370025]
[1744452969234,0.00702583,83416.0,83415.0,0.18370025]
[1744452969427,0.00204672,83416.0,83415.0,0.18370025]
[1744452969563,0.00702583,83416.0,83415.0,0.18370025]
[1744452969767,0.00204672,83416.0,83415.0,0.18370025]
[1744452971664,0.00204672,83416.0,83415.0,0.16770025]
[1744452971862,0.00702583,83416.0,83415.0,0.16770025]
[1744452971999,0.00204672,83416.0,83415.0,0.16770025]
[1744452974680,0.00204672,83416.0,83415.0,0.1700976]
[1744452975249,0.00204672,83416.0,83415.0,0.16770025]
[1744452977827,0.00204672,83416.0,83415.0,0.17009759]
[1744452979925,0.00204672,83416.0,83415.0,0.18219946]
[1744452980899,0.00204672,83416.0,83415.0,0.52219946]
[1744452981106,0.00204672,83416.0,83415.0,0.99024297]
[1744452986207,7.2e-07,83416.0,83415.0,0.99024297]
[1744452988472,0.011983,83446.0,83442.0,0.011984]
[1744452988673,0.00762818,83445.0,83443.0,0.12084154]
[1744452988906,0.00762818,83445.0,83444.0,0.00748722]
[1744452989117,0.24730618,83445.0,83444.0,0.12832876]
[1744452989833,0.24730618,83445.0,83444.0,0.13207237]
[1744452990429,0.25530618,83445.0,83444.0,0.13207237]
[1744452991171,0.26130618,83445.0,83444.0,0.13307237]
[1744452991813,0.25330618,83445.0,83444.0,0.13307237]
[1744452992017,0.25330618,83445.0,83444.0,0.12932876]
[1744452992144,0.25930618,83445.0,83444.0,0.12932876]
[1744452999615,0.25930618,83445.0,83444.0,0.13307237]
[1744453000866,0.25930618,83445.0,83444.0,0.12932876]
[1744453001075,0.25812925,83445.0,83444.0,0.12932876]
[1744453001460,0.25812925,83445.0,83444.0,0.13307237]
[1744453003208,0.25812925,83445.0,83444.0,0.12932876]
[1744453003670,0.47322925,83445.0,83444.0,0.00848722]
[1744453004058,0.47322925,83445.0,83444.0,0.001]
[1744453006796,0.51832925,83445.0,83444.0,0.001]
[1744453011112,1.05797079,83445.0,83444.0,0.001]
[1744453012025,1.05197079,83445.0,83444.0,0.001]
[1744453012444,0.239684,83443.0,83442.0,0.00014021]
[1744453012644,0.50578302,83443.0,83442.0,0.00014021]
[1744453012780,0.51090061,83443.0,83442.0,0.00014021]
[1744453014347,0.51590061,83443.0,83442.0,0.00114021]
[1744453014760,0.52190061,83443.0,83442.0,0.00114021]
[1744453014991,0.52190061,83443.0,83442.0,0.00055805]
[1744453041504,0.64274215,83443.0,83442.0,5e-08]
[1744453041707,1.416083,83443.0,83442.0,5e-08]
[1744453042294,1.410083,83443.0,83442.0,5e-08]
[1744453042693,1.417083,83443.0,83442.0,5e-08]
[1744453043123,1.410083,83443.0,83442.0,5e-08]
[1744453043458,1.51205157,83443.0,83442.0,5e-08]
[1744453044283,0.239759,83417.0,83416.0,0.00748896]
[1744453044487,0.43940636,83417.0,83416.0,0.00748896]
[1744453044700,0.43710734,83417.0,83415.0,0.00748896]
[1744453044908,0.00229902,83416.0,83415.0,0.00748896]
[1744453045115,0.239765,83415.0,83414.0,0.0004219]
[1744453045319,0.419765,83415.0,83414.0,0.0004219]
[1744453045531,0.4270311,83415.0,83414.0,0.0004219]
[1744453046345,0.4310311,83415.0,83414.0,0.0004219]
[1744453047754,0.4320311,83415.0,83414.0,0.0004219]
[1744453048225,0.55287264,83415.0,83414.0,0.0004219]
[1744453048389,0.56203287,83415.0,83414.0,0.0004219]
[1744453048598,0.98083287,83415.0,83414.0,9e-07]
[1744453049552,0.97683287,83415.0,83414.0,9e-07]
[1744453049763,0.98183287,83415.0,83414.0,9e-07]
[1744453050392,0.97683287,83415.0,83414.0,9e-07]
[1744453050593,0.97583287,83415.0,83414.0,9e-07]
[1744453050998,0.97783287,83415.0,83414.0,0.0010009]
[1744453051230,0.85699133,83415.0,83414.0,0.0010009]
[1744453051431,0.85499133,83415.0,83414.0,9e-07]
[1744453051652,0.86099133,83415.0,83414.0,9e-07]
[1744453051847,0.86599133,83415.0,83414.0,0.0010009]
[1744453059516,0.44719133,83415.0,83414.0,0.0010009]
[1744453067190,0.44662318,83415.0,83414.0,0.0010009]
[1744453080371,0.44662318,83415.0,83414.0,0.00849189]
[1744453080886,0.44662318,83415.0,83414.0,0.0122374]
[1744453093750,0.49642318,83415.0,83414.0,0.0122374]
[1744453093924,0.61726472,83415.0,83414.0,0.0122374]
[1744453094109,0.61726472,83415.0,83414.0,0.00849189]
[1744453094514,0.61726472,83415.0,83414.0,0.0010009]
[1744453094719,1.03606472,83415.0,83414.0,0.0010009]
[1744453109882,1.05060557,83415.0,83414.0,0.0010009]
[1744453111228,1.39060557,83415.0,83414.0,0.0010009]
[1744453113159,1.39060557,83415.0,83414.0,9e-07]
[1744453114034,1.38460557,83415.0,83414.0,9e-07]
[1744453114258,0.59431685,83411.0,83410.0,0.000422]
[1744453114481,0.88515839,83411.0,83410.0,0.00056117]
[1744453114696,0.25432285,83409.0,83408.0,1.7e-07]
[1744453114907,0.69260439,83409.0,83408.0,1.7e-07]
[1744453115120,0.69879016,83409.0,83408.0,1.7e-07]
[1744453116290,0.70379016,83409.0,83408.0,1.7e-07]
[1744453117008,0.80339016,83409.0,83408.0,1.7e-07]
[1744453118238,1.22219016,83409.0,83408.0,1.7e-07]
[1744453118653,1.56215016,83409.0,83408.0,1.7e-07]
[1744453119506,1.55015016,83409.0,83408.0,1.7e-07]
[1744453119677,1.56615016,83409.0,83408.0,1.7e-07]
[1744453120039,1.55915016,83409.0,83408.0,1.7e-07]
[1744453120903,1.46655016,83409.0,83408.0,1.7e-07]
[1744453121121,1.45200931,83409.0,83408.0,1.7e-07]
[1744453121358,1.32260931,83409.0,83408.0,1.7e-07]
[1744453122641,1.44333779,83409.0,83408.0,1.7e-07]
[1744453123498,1.32260931,83409.0,83408.0,1.7e-07]
[1744453125117,1.46000931,83409.0,83408.0,1.7e-07]
[1744453133614,1.47455016,83409.0,83408.0,1.7e-07]
[1744453134183,1.47295454,83409.0,83408.0,1.7e-07]
[1744453135187,1.52135454,83409.0,83408.0,1.7e-07]
[1744453135384,1.56725454,83409.0,83408.0,1.7e-07]
[1744453136535,1.68798302,83409.0,83408.0,1.7e-07]
[1744453136716,1.56725454,83409.0,83408.0,1.7e-07]
[1744453140579,1.60191205,83409.0,83408.0,1.7e-07]
[1744453141861,0.01454085,83391.0,83389.0,7e-08]
[1744453142173,0.01454085,83385.0,83384.0,8.7e-07]
[1744453142373,0.34,83384.0,83382.0,3.7e-07]
[1744453142572,0.46918224,83383.0,83382.0,9e-08]
[1744453142786,0.46918224,83383.0,83380.0,9e-08]
[1744453142787,0.34,83382.0,83380.0,9e-08]
[1744453142966,0.71754341,83381.0,83380.0,9e-08]
[1744453143166,1.02196974,83381.0,83380.0,9e-08]
[1744453143569,0.239888,83372.0,83371.0,0.01397219]
[1744453143775,0.41814459,83372.0,83371.0,0.01397219]
[1744453144089,0.41584557,83372.0,83371.0,0.01397219]
[1744453144294,1.46828194,83372.0,83371.0,1.9e-07]
[1744453144473,1.51478194,83372.0,83371.0,1.9e-07]
[1744453144677,1.47228194,83372.0,83371.0,1.9e-07]
[1744453144898,1.45774109,83372.0,83371.0,1.9e-07]
[1744453145780,1.46374109,83372.0,83371.0,1.9e-07]
[1744453146174,1.45974109,83372.0,83371.0,1.9e-07]
[1744453146376,1.46374109,83372.0,83371.0,1.9e-07]
[1744453146796,1.45974109,83372.0,83371.0,1.9e-07]
[1744453147336,1.53358885,83372.0,83371.0,1.9e-07]
[1744453149024,1.46674109,83372.0,83371.0,1.9e-07]
[1744453152428,1.48128194,83372.0,83371.0,1.9e-07]
[1744453152629,1.47917189,83372.0,83371.0,1.9e-07]
[1744453153690,1.46617189,83372.0,83371.0,1.9e-07]
[1744453153889,1.47517189,83372.0,83371.0,1.9e-07]
[1744453154105,1.64718085,83372.0,83371.0,1.9e-07]
[1744453154277,1.53107189,83372.0,83371.0,1.9e-07]
[1744453155344,1.52307189,83372.0,83371.0,1.9e-07]
[1744453155644,1.53307189,83372.0,83371.0,1.9e-07]
[1744453156443,1.52407189,83372.0,83371.0,1.9e-07]
[1744453156617,1.53307189,83372.0,83371.0,1.9e-07]
[1744453157528,1.65380037,83372.0,83371.0,1.9e-07]
[1744453158123,1.53307189,83372.0,83371.0,1.9e-07]
[1744453164935,1.44443189,83372.0,83371.0,1.9e-07]
[1744453165200,1.58187189,83372.0,83371.0,1.9e-07]
[1744453166381,1.48517189,83372.0,83371.0,1.9e-07]
[1744453166584,1.34773189,83372.0,83371.0,1.9e-07]
[1744453166790,1.48517189,83372.0,83371.0,1.9e-07]
[1744453172096,1.60590037,83372.0,83371.0,1.9e-07]
[1744453172646,1.48517189,83372.0,83371.0,1.9e-07]
[1744453179389,0.23872703,83360.0,83359.0,1.9e-07]
[1744453179600,0.65309614,83360.0,83359.0,1.9e-07]
[1744453179823,0.65079712,83360.0,83359.0,1.9e-07]
[1744453180855,0.65679712,83360.0,83359.0,1.9e-07]
[1744453181802,0.66379712,83360.0,83359.0,1.9e-07]
[1744453182208,0.65679712,83360.0,83359.0,1.9e-07]
[1744453182661,0.66379712,83360.0,83359.0,1.9e-07]
[1744453182862,1.08259712,83360.0,83359.0,1.9e-07]
[1744453184626,0.96175558,83360.0,83359.0,1.9e-07]
[1744453184780,0.96175558,83360.0,83359.0,0.04600019]
[1744453187058,0.96175558,83360.0,83359.0,1.9e-07]
[1744453192231,1.08259712,83360.0,83359.0,1.9e-07]
[1744453193081,1.07559712,83360.0,83359.0,1.9e-07]
[1744453193764,1.06959712,83360.0,83359.0,1.9e-07]
[1744453193962,1.07759712,83360.0,83359.0,1.9e-07]
[1744453194189,1.08459712,83360.0,83359.0,1.9e-07]
[1744453194700,1.09159712,83360.0,83359.0,1.9e-07]
[1744453195161,1.08359712,83360.0,83359.0,1.9e-07]
[1744453195655,1.09159712,83360.0,83359.0,1.9e-07]
[1744453197037,0.95419712,83360.0,83359.0,1.9e-07]
[1744453198369,0.83335558,83360.0,83359.0,1.9e-07]
[1744453207027,1.29419712,83360.0,83359.0,1.9e-07]
[1744453208416,1.17335558,83360.0,83359.0,1.9e-07]
[1744453215996,1.29419712,83360.0,83359.0,1.9e-07]
[1744453233855,1.43159712,83360.0,83359.0,1.9e-07]
[1744453243722,1.29419712,83360.0,83359.0,1.9e-07]
[1744453243939,1.43155712,83360.0,83359.0,1.9e-07]
[1744453248006,1.47935712,83360.0,83359.0,1.9e-07]
[1744453248501,1.52475712,83360.0,83359.0,1.9e-07]
[1744453248884,1.51675712,83360.0,83359.0,1.9e-07]
[1744453249108,1.50275712,83360.0,83359.0,1.9e-07]
[1744453249314,1.51075712,83360.0,83359.0,1.9e-07]
[1744453250330,1.51775712,83360.0,83359.0,1.9e-07]
[1744453253853,1.33259712,83360.0,83359.0,1.9e-07]
[1744453254053,1.46995712,83360.0,83359.0,1.9e-07]
[1744453255605,1.42455712,83360.0,83359.0,1.9e-07]
[1744453264232,1.47215712,83360.0,83359.0,1.9e-07]
[1744453264892,1.42455712,83360.0,83359.0,1.9e-07]
[1744453265294,1.42353188,83360.0,83359.0,1.9e-07]
[1744453267709,1.28617188,83360.0,83359.0,1.9e-07]
[1744453267981,1.16533034,83360.0,83359.0,1.9e-07]
[1744453268491,1.28617188,83360.0,83359.0,1.9e-07]
[1744453270601,1.42353188,83360.0,83359.0,1.9e-07]
[1744453272554,1.28617188,83360.0,83359.0,1.9e-07]
[1744453272757,1.42349188,83360.0,83359.0,1.9e-07]
[1744453281990,1.43803273,83360.0,83359.0,1.9e-07]
[1744453284064,1.48653273,83360.0,83359.0,1.9e-07]
[1744453294235,1.52015238,83360.0,83359.0,1.9e-07]
[1744453295573,1.48653273,83360.0,83359.0,1.9e-07]
[1744453297621,1.52014356,83360.0,83359.0,1.9e-07]
[1744453306147,1.38282356,83360.0,83359.0,1.9e-07]
[1744453306351,1.52014356,83360.0,83359.0,1.9e-07]
[1744453307581,1.47164356,83360.0,83359.0,1.9e-07]
[1744453307881,1.43803273,83360.0,83359.0,1.9e-07]
[1744453309242,1.47166397,83360.0,83359.0,1.9e-07]
[1744453310333,1.43803273,83360.0,83359.0,1.9e-07]
[1744453310957,1.47166532,83360.0,83359.0,1.9e-07]
[1744453313819,1.43803273,83360.0,83359.0,1.9e-07]
[1744453313995,1.47165173,83360.0,83359.0,1.9e-07]
[1744453315838,1.33433173,83360.0,83359.0,1.9e-07]
[1744453316061,1.47165173,83360.0,83359.0,1.9e-07]
[1744453316932,0.82435549,83360.0,83359.0,0.04810019]
[1744453317275,1.16435549,83360.0,83359.0,0.04810019]
[1744453317821,0.74555549,83360.0,83359.0,0.04810019]
[1744453333339,0.0178537,83360.0,83359.0,0.04810019]
[1744453333556,0.0178537,83360.0,83359.0,0.09824793]